fUSD/lending_fUSD_20240814
["ID","MTS","AMOUNT","RATE_DAILY","PERIOD"]
[334953657,1723671049577,-500.0,0.00014519,2]
[334953658,1723671049587,-500.0,0.00014519,2]
[334953659,1723671049597,-500.0,0.00014519,2]
[334953660,1723671049606,-500.0,0.00014519,2]
[334953661,1723671049616,-500.0,0.00014519,2]
[334953662,1723671049626,-500.0,0.00014519,2]
[334953663,1723671049635,-500.0,0.00014519,2]
[334953664,1723671049645,-500.0,0.00014519,2]
[334953665,1723671049655,-673.87,0.00014519,2]
[334953666,1723671049665,-500.0,0.00014519,2]
[334953667,1723671049675,-1191.97,0.00014519,2]
[334953668,1723671049684,-500.0,0.00014519,2]
[334953669,1723671049694,-2033.88,0.00014519,2]
[334953670,1723671049704,-500.0,0.00014519,2]
[334953671,1723671049714,-151.0,0.00014519,2]
[334953672,1723671049723,-166.56326385,0.00014519,2]
[334953673,1723671049733,-500.0,0.00014519,2]
[334953674,1723671049743,-500.0,0.00014519,2]
[334953675,1723671049752,-500.0,0.00014519,2]
[334953676,1723671049762,-716.22,0.00014519,2]
[334953677,1723671049771,-500.0,0.00014519,2]
[334953678,1723671049781,-500.0,0.00014519,2]
[334953679,1723671049790,-500.0,0.00014519,2]
[334953680,1723671049801,-500.0,0.00014519,2]
[334953681,1723671049811,-1083.34,0.00014519,2]
[334953682,1723671049821,-151.0,0.00014519,2]
[334953683,1723671049834,-500.0,0.00014519,2]
[334953684,1723671049932,-500.0,0.00014519,2]
[334953685,1723671049943,-151.0,0.00014519,2]
[334953686,1723671049954,-500.0,0.00014519,2]
[334953687,1723671049964,-500.0,0.00014519,2]
[334953688,1723671049974,-500.0,0.00014519,2]
[334953689,1723671049984,-500.0,0.00014519,2]
[334953690,1723671049994,-500.0,0.00014519,2]
[334953691,1723671050004,-867.92,0.00014519,2]
[334953692,1723671050013,-166.486331,0.00014519,2]
[334953693,1723671050023,-151.0,0.00014519,2]
[334953694,1723671050033,-500.0,0.00014519,2]
[334953695,1723671050042,-166.486331,0.00014519,2]
[334953696,1723671050051,-598.09,0.00014519,2]
[334953697,1723671050061,-500.0,0.00014519,2]
[334953698,1723671050070,-500.0,0.00014519,2]
[334953699,1723671050079,-500.0,0.00014519,2]
[334953700,1723671050090,-500.0,0.00014519,2]
[334953701,1723671050100,-192.855721,0.00014519,2]
[334953702,1723671050109,-151.377868,0.00014519,2]
[334953703,1723671050118,-192.855721,0.00014519,2]
[334953704,1723671050128,-500.0,0.00014519,2]
[334953705,1723671050138,-500.0,0.00014519,2]
[334953706,1723671050147,-500.0,0.00014519,2]
[334953707,1723671050157,-500.0,0.00014519,2]
[334953708,1723671050167,-506.79573781,0.00014519,2]
[334953709,1723671050177,-500.0,0.00014519,2]
[334953710,1723671050186,-500.0,0.00014519,2]
[334953711,1723671050196,-500.0,0.00014519,2]
[334953712,1723671050206,-500.0,0.00014519,2]
[334953713,1723671050216,-500.0,0.00014519,2]
[334953714,1723671050226,-586.485005,0.00014519,2]
[334953715,1723671050236,-196.877797,0.00014519,2]
[334953716,1723671050246,-837.07,0.00014519,2]
[334953717,1723671050255,-586.485005,0.00014519,2]
[334953718,1723671050264,-196.877797,0.00014519,2]
[334953719,1723671050273,-526.04,0.00014519,2]
[334953720,1723671050283,-1653.213627,0.00014519,2]
[334953721,1723671050292,-500.0,0.00014519,2]
[334953722,1723671050302,-1653.213627,0.00014519,2]
[334953723,1723671050310,-151.0,0.00014519,2]
[334953724,1723671050319,-257.362315,0.00014519,2]
[334953725,1723671050329,-500.0,0.00014519,2]
[334953726,1723671050339,-500.0,0.00014519,2]
[334953727,1723671050349,-151.0,0.00014519,2]
[334953728,1723671050358,-500.0,0.00014519,2]
[334953729,1723671050367,-257.362315,0.00014519,2]
[334953730,1723671050376,-500.0,0.00014519,2]
[334953731,1723671050387,-500.0,0.00014519,2]
[334953732,1723671050396,-500.0,0.00014519,2]
[334953733,1723671050405,-500.0,0.00014519,2]
[334953734,1723671050415,-2426.382911,0.00014519,2]
[334953735,1723671050424,-2426.382911,0.00014519,2]
[334953736,1723671050434,-500.0,0.00014519,2]
[334953737,1723671050444,-500.0,0.00014519,2]
[334953738,1723671050454,-500.0,0.00014519,2]
[334953739,1723671050464,-500.0,0.00014519,2]
[334953740,1723671050473,-151.0,0.0001452,2]
[334953741,1723671050483,-198.385566,0.0001452,2]
[334953742,1723671050493,-198.385566,0.0001452,2]
[334953743,1723671050502,-151.0,0.0001452,2]
[334953744,1723671050512,-151.0,0.0001452,2]
[334953745,1723671050521,-151.0,0.0001452,2]
[334953746,1723671050530,-151.0,0.0001452,2]
[334953747,1723671050539,-151.0,0.0001452,2]
[334953748,1723671050548,-151.0,0.0001452,2]
[334953749,1723671050559,-151.0,0.0001452,2]
[334953750,1723671050568,-151.0,0.0001452,2]
[334953751,1723671050578,-151.0,0.0001452,2]
[334953752,1723671050587,-151.0,0.0001452,2]
[334953753,1723671050597,-151.0,0.0001452,2]
[334953754,1723671050607,-151.0,0.0001452,2]
[334953755,1723671050616,-151.0,0.0001452,2]
[334953756,1723671050626,-151.0,0.0001452,2]
[334953757,1723671050635,-1072.180846,0.0001452,2]
[334953758,1723671050645,-151.0,0.0001452,2]
[334953759,1723671050654,-151.0,0.0001452,2]
[334953760,1723671050663,-301.796473,0.0001452,2]
[334953761,1723671050672,-499.626765,0.0001452,2]
[334953762,1723671050682,-301.796473,0.0001452,2]
[334953763,1723671050691,-499.626765,0.0001452,2]
[334953764,1723671050702,-500.0,0.0001452,2]
[334953765,1723671050711,-500.0,0.0001452,2]
[334953766,1723671050720,-500.0,0.0001452,2]
[334953767,1723671050730,-1953.876887,0.0001452,2]
[334953768,1723671050739,-182.328166,0.0001452,2]
[334953769,1723671050749,-1953.876887,0.0001452,2]
[334953770,1723671050758,-151.0,0.0001452,2]
[334953771,1723671050767,-182.328166,0.0001452,2]
[334953772,1723671050776,-151.0,0.0001452,2]
[334953773,1723671050785,-151.0,0.0001452,2]
[334953774,1723671050795,-319.181767,0.0001452,2]
[334953775,1723671050804,-319.181767,0.0001452,2]
[334953776,1723671050814,-199.933526,0.0001452,2]
[334953777,1723671050824,-199.933526,0.0001452,2]
[334953778,1723671050835,-500.0,0.0001452,2]
[334953779,1723671050845,-828.6,0.0001452,2]
[334953780,1723671050854,-207.775921,0.0001452,2]
[334953781,1723671050863,-207.775921,0.0001452,2]
[334953782,1723671050873,-151.0,0.0001452,2]
[334953783,1723671050882,-500.0,0.0001452,2]
[334953784,1723671050892,-151.0,0.0001452,2]
[334953785,1723671050901,-949.98397,0.0001452,2]
[334953786,1723671050911,-949.98397,0.0001452,2]
[334953787,1723671050921,-1704.69613,0.0001452,2]
[334953788,1723671050930,-500.0,0.0001452,2]
[334953789,1723671050940,-1704.69613,0.0001452,2]
[334953790,1723671050949,-151.0,0.0001452,2]
[334953791,1723671050960,-151.0,0.0001452,2]
[334953792,1723671050969,-578.01,0.0001452,2]
[334953793,1723671050979,-275.793089,0.0001452,2]
[334953794,1723671050988,-1091.246547,0.0001452,2]
[334953795,1723671050998,-275.793089,0.0001452,2]
[334953796,1723671051007,-1091.246547,0.0001452,2]
[334953797,1723671051017,-151.0,0.0001452,2]
[334953798,1723671051026,-427.976466,0.0001452,2]
[334953799,1723671051036,-156.934275,0.0001452,2]
[334953800,1723671051046,-427.976466,0.0001452,2]
[334953801,1723671051055,-156.934275,0.0001452,2]
[334953802,1723671051064,-151.0,0.0001452,2]
[334953803,1723671051074,-151.0,0.0001452,2]
[334953804,1723671051083,-500.0,0.0001452,2]
[334953805,1723671051092,-500.0,0.0001452,2]
[334953806,1723671051102,-328.071574,0.0001452,2]
[334953807,1723671051111,-328.071574,0.0001452,2]
[334953808,1723671051121,-2189.59777,0.0001452,2]
[334953809,1723671051130,-2189.59777,0.0001452,2]
[334953810,1723671051140,-500.0,0.0001452,2]
[334953811,1723671051149,-151.0,0.0001452,2]
[334953812,1723671051158,-500.0,0.0001452,2]
[334953813,1723671051168,-300.879041,0.0001452,2]
[334953814,1723671051177,-500.0,0.0001452,2]
[334953815,1723671051186,-300.879041,0.0001452,2]
[334953816,1723671051196,-500.0,0.0001452,2]
[334953817,1723671051205,-151.0,0.0001452,2]
[334953818,1723671051215,-151.0,0.0001452,2]
[334953819,1723671051224,-500.0,0.0001452,2]
[334953820,1723671051234,-500.0,0.0001452,2]
[334953821,1723671051244,-151.0,0.0001452,2]
[334953822,1723671051253,-2393.569949,0.0001452,2]
[334953823,1723671051262,-2393.569949,0.0001452,2]
[334953824,1723671051272,-500.0,0.0001452,2]
[334953825,1723671051282,-500.0,0.0001452,2]
[334953826,1723671051291,-500.0,0.0001452,2]
[334953827,1723671051301,-151.0,0.0001452,2]
[334953828,1723671051310,-151.0,0.0001452,2]
[334953829,1723671051320,-500.0,0.0001452,2]
[334953830,1723671051417,-151.0,0.0001452,2]
[334953831,1723671051427,-151.0,0.0001452,2]
[334953832,1723671051436,-212.28109,0.0001452,2]
[334953833,1723671051446,-500.0,0.0001452,2]
[334953834,1723671051456,-370.301914,0.0001452,2]
[334953835,1723671051466,-212.28109,0.0001452,2]
[334953836,1723671051475,-267.021086,0.0001452,2]
[334953837,1723671051484,-370.301914,0.0001452,2]
[334953838,1723671051493,-267.021086,0.0001452,2]
[334953839,1723671051502,-500.0,0.0001452,2]
[334953840,1723671051512,-500.0,0.0001452,2]
[334953841,1723671051521,-454.889454,0.0001452,2]
[334953842,1723671051530,-919.322496,0.0001452,2]
[334953843,1723671051540,-500.0,0.0001452,2]
[334953844,1723671051549,-454.889454,0.0001452,2]
[334953845,1723671051557,-919.322496,0.0001452,2]
[334953846,1723671051566,-543.0,0.0001452,2]
[334953847,1723671051575,-500.0,0.0001452,2]
[334953848,1723671051584,-201.582572,0.0001452,2]
[334953849,1723671051593,-201.582572,0.0001452,2]
[334953850,1723671051602,-357.539196,0.0001452,2]
[334953851,1723671051611,-10000.0,0.0001452,2]
[334953852,1723671051620,-357.539196,0.0001452,2]
[334953853,1723671051629,-151.0,0.0001452,2]
[334953854,1723671051638,-10000.0,0.0001452,2]
[334953855,1723671051647,-463.702414,0.0001452,2]
[334953856,1723671051656,-463.702414,0.0001452,2]
[334953857,1723671051666,-500.0,0.0001452,2]
[334953858,1723671051675,-151.0,0.0001452,2]
[334953859,1723671051685,-516.82,0.0001452,2]
[334953860,1723671051694,-500.0,0.0001452,2]
[334953861,1723671051703,-500.0,0.0001452,2]
[334953862,1723671051712,-1439.5,0.0001452,2]
[334953863,1723671051722,-283.669863,0.0001452,2]
[334953864,1723671051730,-283.669863,0.0001452,2]
[334953865,1723671051739,-296.765324,0.0001452,2]
[334953866,1723671051749,-296.765324,0.0001452,2]
[334953867,1723671051758,-500.0,0.0001452,2]
[334953868,1723671051767,-425.920658,0.0001452,2]
[334953869,1723671051776,-425.920658,0.0001452,2]
[334953870,1723671051785,-1276.494415,0.0001452,2]
[334953871,1723671051794,-1362.441765,0.0001452,2]
[334953872,1723671051803,-1276.494415,0.0001452,2]
[334953873,1723671051812,-500.0,0.0001452,2]
[334953874,1723671051821,-1362.441765,0.0001452,2]
[334953875,1723671051834,-500.0,0.0001452,2]
[334953876,1723671051843,-500.0,0.0001452,2]
[334953877,1723671051852,-500.0,0.0001452,2]
[334953878,1723671051861,-268.600172,0.0001452,2]
[334953879,1723671051871,-268.600172,0.0001452,2]
[334953880,1723671051879,-500.0,0.0001452,2]
[334953881,1723671051888,-1034.841714,0.0001452,2]
[334953882,1723671051897,-500.923607,0.0001452,2]
[334953883,1723671051908,-1034.841714,0.0001452,2]
[334953884,1723671051917,-500.923607,0.0001452,2]
[334953885,1723671051927,-500.0,0.0001452,2]
[334953886,1723671051936,-1349.32,0.0001452,2]
[334953887,1723671051945,-500.0,0.0001452,2]
[334953888,1723671051956,-500.0,0.0001452,2]
[334953889,1723671051965,-500.0,0.0001452,2]
[334953890,1723671051975,-500.0,0.0001452,2]
[334953891,1723671051984,-500.0,0.0001452,2]
[334953892,1723671051993,-500.0,0.0001452,2]
[334953893,1723671052003,-879.23,0.0001452,2]
[334953894,1723671052012,-500.0,0.0001452,2]
[334953895,1723671052021,-192.855721,0.0001452,2]
[334953896,1723671052030,-192.855721,0.0001452,2]
[334953897,1723671052040,-500.0,0.0001452,2]
[334953898,1723671052049,-500.0,0.0001452,2]
[334953899,1723671052058,-500.0,0.0001452,2]
[334953900,1723671052067,-500.0,0.0001452,2]
[334953901,1723671052077,-500.0,0.0001452,2]
[334953902,1723671052086,-500.0,0.0001452,2]
[334953903,1723671052095,-443.40258371,0.0001452,2]
[334953904,1723671052104,-500.0,0.0001452,2]
[334953905,1723671052113,-500.0,0.0001452,2]
[334953906,1723671052122,-586.485005,0.0001452,2]
[334953907,1723671052131,-196.877797,0.0001452,2]
[334953908,1723671052141,-586.485005,0.0001452,2]
[334953909,1723671052150,-196.877797,0.0001452,2]
[334953910,1723671052159,-1445.27,0.0001452,2]
[334953911,1723671052168,-1653.213627,0.0001452,2]
[334953912,1723671052178,-1653.213627,0.0001452,2]
[334953913,1723671052187,-151.0,0.0001452,2]
[334953914,1723671052196,-500.0,0.0001452,2]
[334953915,1723671052207,-257.362315,0.0001452,2]
[334953916,1723671052216,-151.0,0.0001452,2]
[334953917,1723671052225,-257.362315,0.0001452,2]
[334953918,1723671052234,-300.943639,0.0001452,2]
[334953919,1723671052243,-300.943639,0.0001452,2]
[334953920,1723671052252,-500.0,0.0001452,2]
[334953921,1723671052261,-2426.382911,0.0001452,2]
[334953922,1723671052270,-2426.382911,0.0001452,2]
[334953923,1723671052279,-500.0,0.0001452,2]
[334953924,1723671052288,-500.0,0.0001452,2]
[334953925,1723671052297,-1238.655571,0.0001452,2]
[334953926,1723671052305,-500.0,0.0001452,2]
[334953927,1723671052314,-1238.655571,0.0001452,2]
[334953928,1723671052323,-1000.0,0.00014556,2]
[334953929,1723671052333,-180.44621796,0.00014578,2]
[334953930,1723671052342,-151.0,0.0001459,2]
[334953931,1723671052351,-499.626765,0.0001459,2]
[334953932,1723671052360,-499.626765,0.0001459,2]
[334953933,1723671052369,-182.328166,0.0001459,2]
[334953934,1723671052378,-151.0,0.0001459,2]
[334953935,1723671052388,-182.328166,0.0001459,2]
[334953936,1723671052397,-151.0,0.0001459,2]
[334953937,1723671052406,-319.181767,0.0001459,2]
[334953938,1723671052415,-319.181767,0.0001459,2]
[334953939,1723671052424,-199.933526,0.0001459,2]
[334953940,1723671052433,-199.933526,0.0001459,2]
[334953941,1723671052443,-207.775921,0.0001459,2]
[334953942,1723671052451,-207.775921,0.0001459,2]
[334953943,1723671052468,-151.0,0.0001459,2]
[334953944,1723671052477,-151.0,0.0001459,2]
[334953945,1723671052486,-949.98397,0.0001459,2]
[334953946,1723671052495,-949.98397,0.0001459,2]
[334953947,1723671052504,-1704.69613,0.0001459,2]
[334953948,1723671052513,-1704.69613,0.0001459,2]
[334953949,1723671052522,-151.0,0.0001459,2]
[334953950,1723671052531,-1091.246547,0.0001459,2]
[334953951,1723671052540,-1091.246547,0.0001459,2]
[334953952,1723671052549,-151.0,0.0001459,2]
[334953953,1723671052558,-151.0,0.0001459,2]
[334953954,1723671052567,-151.0,0.0001459,2]
[334953955,1723671052577,-328.071574,0.0001459,2]
[334953956,1723671052586,-328.071574,0.0001459,2]
[334953957,1723671052595,-179.968216,0.0001459,2]
[334953958,1723671052604,-151.0,0.0001459,2]
[334953959,1723671052613,-151.0,0.0001459,2]
[334953960,1723671052623,-151.0,0.0001459,2]
[334953961,1723671052632,-2393.569949,0.0001459,2]
[334953962,1723671052642,-2393.569949,0.0001459,2]
[334953963,1723671052732,-151.0,0.0001459,2]
[334953964,1723671052742,-151.0,0.0001459,2]
[334953965,1723671052751,-151.0,0.0001459,2]
[334953966,1723671052761,-151.0,0.0001459,2]
[334953967,1723671052770,-212.28109,0.0001459,2]
[334953968,1723671052779,-212.28109,0.0001459,2]
[334953969,1723671052789,-370.301914,0.0001459,2]
[334953970,1723671052799,-267.021086,0.0001459,2]
[334953971,1723671052808,-370.301914,0.0001459,2]
[334953972,1723671052817,-267.021086,0.0001459,2]
[334953973,1723671052828,-454.889454,0.0001459,2]
[334953974,1723671052839,-919.322496,0.0001459,2]
[334953975,1723671052848,-454.889454,0.0001459,2]
[334953976,1723671052857,-919.322496,0.0001459,2]
[334953977,1723671052866,-201.582572,0.0001459,2]
[334953978,1723671052876,-201.582572,0.0001459,2]
[334953979,1723671052885,-357.539196,0.0001459,2]
[334953980,1723671052894,-10000.0,0.0001459,2]
[334953981,1723671052904,-357.539196,0.0001459,2]
[334953982,1723671052913,-938.527171,0.0001459,2]
[334953983,1723671052922,-151.0,0.0001459,2]
[334953984,1723671052932,-296.765324,0.0001459,2]
[334953985,1723671052941,-296.765324,0.0001459,2]
[334953986,1723671052950,-425.920658,0.0001459,2]
[334953987,1723671052960,-425.920658,0.0001459,2]
[334953988,1723671052969,-1362.441765,0.0001459,2]
[334953989,1723671052978,-1362.441765,0.0001459,2]
[334953990,1723671052988,-151.0,0.0001459,2]
[334953991,1723671052997,-268.600172,0.0001459,2]
[334953992,1723671053005,-268.600172,0.0001459,2]
[334953993,1723671053015,-151.0,0.0001459,2]
[334953994,1723671053024,-151.0,0.0001459,2]
[334953995,1723671053033,-500.923607,0.0001459,2]
[334953996,1723671053043,-500.923607,0.0001459,2]
[334953997,1723671053052,-166.486331,0.0001459,2]
[334953998,1723671053061,-151.0,0.0001459,2]
[334953999,1723671053071,-166.486331,0.0001459,2]
[334954000,1723671053080,-823.0,0.00014592,2]
[334954001,1723671053089,-151.0,0.000146,2]
[334954002,1723671053099,-151.0,0.000146,2]
[334954003,1723671053108,-151.0,0.000146,2]
[334954004,1723671053118,-151.0,0.000146,2]
[334954005,1723671053127,-151.0,0.000146,2]
[334954006,1723671053137,-214.097175,0.000146,2]
[334954007,1723671053146,-151.0,0.000146,2]
[334954008,1723671053155,-214.097175,0.000146,2]
[334954009,1723671053164,-151.0,0.000146,2]
[334954010,1723671053173,-151.0,0.000146,2]
[334954011,1723671053182,-151.0,0.000146,2]
[334954012,1723671053192,-151.0,0.000146,2]
[334954013,1723671053201,-151.0,0.000146,2]
[334954014,1723671053211,-151.0,0.000146,2]
[334954015,1723671053220,-209.026705,0.000146,2]
[334954016,1723671053229,-151.0,0.000146,2]
[334954017,1723671053238,-209.026705,0.000146,2]
[334954018,1723671053248,-151.0,0.000146,2]
[334954019,1723671053258,-151.0,0.000146,2]
[334954020,1723671053267,-151.0,0.000146,2]
[334954021,1723671053276,-163.712186,0.000146,2]
[334954022,1723671053286,-151.0,0.000146,2]
[334954023,1723671053295,-163.712186,0.000146,2]
[334954024,1723671053311,-1072.180846,0.000146,2]
[334954025,1723671053326,-151.0,0.000146,2]
[334954026,1723671053343,-301.796473,0.000146,2]
[334954027,1723671053362,-301.796473,0.000146,2]
[334954028,1723671053376,-200.0,0.000146,2]
[334954029,1723671053393,-1953.876887,0.000146,2]
[334954030,1723671053409,-1953.876887,0.000146,2]
[334954031,1723671053426,-151.0,0.000146,2]
[334954032,1723671053444,-151.0,0.000146,2]
[334954033,1723671053460,-275.793089,0.000146,2]
[334954034,1723671053477,-275.793089,0.000146,2]
[334954035,1723671053493,-427.976466,0.000146,2]
[334954036,1723671053507,-156.934275,0.000146,2]
[334954037,1723671053524,-427.976466,0.000146,2]
[334954038,1723671053536,-156.934275,0.000146,2]
[334954039,1723671053551,-2189.59777,0.000146,2]
[334954040,1723671053563,-2189.59777,0.000146,2]
[334954041,1723671053579,-300.879041,0.000146,2]
[334954042,1723671053593,-300.879041,0.000146,2]
[334954043,1723671053607,-151.0,0.000146,2]
[334954044,1723671053621,-463.702414,0.000146,2]
[334954045,1723671053635,-463.702414,0.000146,2]
[334954046,1723671053649,-283.669863,0.000146,2]
[334954047,1723671053664,-283.669863,0.000146,2]
[334954048,1723671053678,-1276.494415,0.000146,2]
[334954049,1723671053692,-1276.494415,0.000146,2]
[334954050,1723671053707,-1034.841714,0.000146,2]
[334954051,1723671053721,-1034.841714,0.000146,2]
[334954052,1723671053736,-500.0,0.00014647,2]
[334954053,1723671053750,-489.218403,0.000147,2]
[334954054,1723671053764,-2033.88,0.00014732,2]
[334954055,1723671053778,-500.0,0.00014732,2]
[334954056,1723671053793,-1238.655571,0.00014732,2]
[334954057,1723671053808,-1238.655571,0.00014732,2]
[334954058,1723671053826,-440.08291615,0.00014753,2]
[334954059,1723671053841,-478.2193538,0.00014757,2]
[334954060,1723671053856,-151.0,0.00014772,2]
[334954061,1723671053871,-151.0,0.00014772,2]
[334954062,1723671053886,-151.0,0.00014772,2]
[334954063,1723671053900,-151.0,0.00014772,2]
[334954064,1723671053915,-151.0,0.00014772,2]
[334954065,1723671053930,-151.0,0.00014772,2]
[334954066,1723671053945,-1072.180846,0.00014772,2]
[334954067,1723671053960,-1072.180846,0.00014772,2]
[334954068,1723671053975,-151.0,0.00014772,2]
[334954069,1723671053990,-151.0,0.00014772,2]
[334954070,1723671054006,-301.796473,0.00014772,2]
[334954071,1723671054020,-499.626765,0.00014772,2]
[334954072,1723671054034,-301.796473,0.00014772,2]
[334954073,1723671054049,-499.626765,0.00014772,2]
[334954074,1723671054064,-182.328166,0.00014772,2]
[334954075,1723671054078,-151.0,0.00014772,2]
[334954076,1723671054093,-182.328166,0.00014772,2]
[334954077,1723671054108,-151.0,0.00014772,2]
[334954078,1723671054122,-319.181767,0.00014772,2]
[334954079,1723671054137,-319.181767,0.00014772,2]
[334954080,1723671054151,-199.933526,0.00014772,2]
[334954081,1723671054166,-199.933526,0.00014772,2]
[334954082,1723671054180,-207.775921,0.00014772,2]
[334954083,1723671054195,-207.775921,0.00014772,2]
[334954084,1723671054211,-151.0,0.00014772,2]
[334954085,1723671054224,-151.0,0.00014772,2]
[334954086,1723671054368,-949.98397,0.00014772,2]
[334954087,1723671054382,-949.98397,0.00014772,2]
[334954088,1723671054392,-1704.69613,0.00014772,2]
[334954089,1723671054401,-1704.69613,0.00014772,2]
[334954090,1723671054410,-151.0,0.00014772,2]
[334954091,1723671054420,-1091.246547,0.00014772,2]
[334954092,1723671054429,-1091.246547,0.00014772,2]
[334954093,1723671054438,-300.943639,0.00014772,2]
[334954094,1723671054448,-300.943639,0.00014772,2]
[334954095,1723671054458,-200.0,0.00014773,2]
[334954096,1723671054467,-256.06295204,0.00014773,2]
[334954097,1723671054475,-150.0,0.00014773,2]
[334954098,1723671054485,-1953.876887,0.00014773,2]
[334954099,1723671054494,-1953.876887,0.00014773,2]
[334954100,1723671054503,-151.0,0.00014773,2]
[334954101,1723671054512,-151.0,0.00014773,2]
[334954102,1723671054521,-151.0,0.00014773,2]
[334954103,1723671054530,-153.537472,0.00014773,2]
[334954104,1723671054538,-328.071574,0.00014773,2]
[334954105,1723671054548,-328.071574,0.00014773,2]
[334954106,1723671054557,-151.0,0.00014773,2]
[334954107,1723671054565,-151.0,0.00014773,2]
[334954108,1723671054574,-151.0,0.00014773,2]
[334954109,1723671054583,-2393.569949,0.00014773,2]
[334954110,1723671054592,-2393.569949,0.00014773,2]
[334954111,1723671054601,-151.0,0.00014773,2]
[334954112,1723671054611,-151.0,0.00014773,2]
[334954113,1723671054620,-151.0,0.00014773,2]
[334954114,1723671054629,-212.28109,0.00014773,2]
[334954115,1723671054639,-212.28109,0.00014773,2]
[334954116,1723671054648,-370.301914,0.00014773,2]
[334954117,1723671054657,-267.021086,0.00014773,2]
[334954118,1723671054666,-370.301914,0.00014773,2]
[334954119,1723671054675,-267.021086,0.00014773,2]
[334954120,1723671054684,-919.322496,0.00014773,2]
[334954121,1723671054693,-919.322496,0.00014773,2]
[334954122,1723671054702,-357.539196,0.00014773,2]
[334954123,1723671054712,-357.539196,0.00014773,2]
[334954124,1723671054721,-296.765324,0.00014773,2]
[334954125,1723671054730,-296.765324,0.00014773,2]
[334954126,1723671054739,-5880.9998004,0.00014781,2]
[334954127,1723671054749,-2841.12816254,0.00014782,2]
[334954128,1723671054759,-189.97458777,0.00014782,2]
[334954129,1723671054768,-211.58521204,0.00014782,2]
[334954130,1723671054777,-151.0,0.00014782,2]
[334954131,1723671054788,-151.0,0.00014782,2]
[334954132,1723671054798,-275.793089,0.00014782,2]
[334954133,1723671054809,-275.793089,0.00014782,2]
[334954134,1723671054820,-427.976466,0.00014782,2]
[334954135,1723671054832,-156.934275,0.00014782,2]
[334954136,1723671054843,-427.976466,0.00014782,2]
[334954137,1723671054852,-156.934275,0.00014782,2]
[334954138,1723671054863,-2189.59777,0.00014782,2]
[334954139,1723671054874,-2189.59777,0.00014782,2]
[334954140,1723671054884,-300.879041,0.00014782,2]
[334954141,1723671054893,-300.879041,0.00014782,2]
[334954142,1723671054903,-183.0022854,0.00014782,2]
[334954143,1723671054913,-454.889454,0.00014782,2]
[334954144,1723671054924,-454.889454,0.00014782,2]
[334954145,1723671054933,-201.582572,0.00014782,2]
[334954146,1723671054942,-201.582572,0.00014782,2]
[334954147,1723671054952,-10000.0,0.00014782,2]
[334954148,1723671054961,-247.91842,0.00014782,2]
[334954149,1723671054970,-425.920658,0.00014782,2]
[334954150,1723671054980,-425.920658,0.00014782,2]
[334954151,1723671054989,-1362.441765,0.00014782,2]
[334954152,1723671054999,-1362.441765,0.00014782,2]
[334954153,1723671055008,-151.0,0.00014782,2]
[334954154,1723671055019,-35414.3933186,0.00014782,2]
[334954155,1723671055028,-268.600172,0.00014782,2]
[334954156,1723671055038,-268.600172,0.00014782,2]